Workbook

Sheet Indice
B1: Sociedad: | C1: BEPSA DEL PARAGUAY S.A.E.C.A.
S2: 1 | T2: Enero
S3: 2 | T3: Febrero
S4: 3 | T4: Marzo
S5: 4 | T5: Abril
A6: Fecha Presentación: | B6: 2021-06-30 | S6: 5 | T6: Mayo
S7: 6 | T7: Junio
S8: 7 | T8: Julio
C9: INDICE | D9: REF. | S9: 8 | T9: Agosto
B10: Informacion General | S10: 9 | T10: Septiembre
C11: Descripción de la naturaleza y del negocio de la Sociedad | D11: Nota 1 | S11: 10 | T11: Octubre
C12: Resumen de las principales políticas contables | D12: Nota 2 | S12: 11 | T12: Noviembre
B13: Balance General | D13: BG | S13: 12 | T13: Diciembre
C14: Efectivo y equivalente de efectivo | D14: Nota 3
C15: Inversiones temporales | D15: Nota 4
C16: Cuentas por cobrar comerciales | D16: Nota 5
C17: Otros créditos | D17: Nota 6
C18: Cuentas por cobrar comerciales | D18: Nota 5
C19: Inventarios | D19: Nota 7
C20: Inversión en asociadas | D20: Nota 8
C21: Propiedades, planta y equipo | D21: Nota 9
C22: Activos disponibles para la venta | D22: Nota 10
C23: Activos intangibles | D23: Nota 11
C24: Goodwill | D24: Nota 12
C25: Cuentas por pagar comerciales | D25: Nota 13
C26: Préstamos a corto plazo | D26: Nota 14
C27: Porción corriente de la deuda a largo plazo | D27: Nota 15
C28: Remuneraciones y cargas sociales a pagar | D28: Nota 16
C29: Impuestos a pagar | D29: Nota 17
C30: Provisiones | D30: Nota 18
C31: Otros pasivos corrientes | D31: Nota 19
C32: Prestamos a largo plazo | D32: Nota 14
C33: Otros pasivos no corrientes | D33: Nota 19
C34: Capital integrado | D34: Nota 20
C35: Reserva de revalúo | D35: Nota 21
C36: Reserva legal | D36: Nota 21
C37: Reservas estatutarias | D37: Nota 21
C38: Reservas facultativas | D38: Nota 21
C39: Diferencia transitoria por conversión | D39: Nota 22
C40: Resultados acumulados | D40: Nota 23
C41: Interés minoritario | D41: Nota 24
B42: Estado de Resultados | D42: ER
C43: Ventas | D43: Nota 25
C44: Costo de ventas | D44: Nota 26
C45: Gastos de ventas | D45: Nota 27
C46: Gastos administrativos | D46: Nota 27
C47: Otros ingresos y gastos operativos | D47: Nota 28
C48: Ingresos financieros - neto | D48: Nota 29
C49: Gastos financieros - neto | D49: Nota 29
C50: Resultado de inversiones en asociadas | D50: Nota 30
C51: Resultado participación minoritaria | D51: Nota 31
C52: Impuesto a la renta | D52: Nota 32
C53: Resultado extraordinario neto de impuesto a la renta | D53: Nota 33
C54: Resultado sobre actividades discontinuadas neto de impuesto a la renta | D54: Nota 34
C55: Utilidad/(Pérdida) neta del año | D55: Nota 35
C56: Utilidad neta por acción ordinaria | D56: Nota 35
B57: Estado de Evolución del Patrimonio Neto | D57: EVPN
B58: Estado de Flujos de Efectivo | D58: EFE
B59: Otras Notas de los Estados Financieros
C60: Activos gravados | D60: Nota 36
C61: Contingencias y compromisos | D61: Nota 37
C62: Impuesto diferido | D62: Nota 38
C63: Hechos posteriores | D63: Nota 39
C64: Saldos y transacciones con partes relacionadas | D64: Nota 40

Sheet BG
D1: BEPSA DEL PARAGUAY S.A.E.C.A. | E1: Indice
A7: BALANCE GENERAL
A8: Al 30 de Junio de 2021
E11: Nota | F11: 2021 | G11: 2020
B12: ACTIVOS
B13: Activos Corrientes
C14: Efectivo y equivalente de efectivo | E14: 3 | F14: 5451948196 | G14: 36779595547
C15: Inversiones temporales | E15: 4 | F15: 0 | G15: 5092734233
C16: Cuentas por cobrar comerciales | E16: 5 | F16: 50355160902 | G16: 36652136338
C17: Otros créditos | E17: 6 | F17: =+'Nota 6'!B21 -> 8704973550 | G17: 5978470890
C18: Inventarios | E18: 7
C19: Total activos corrientes | F19: =SUM(F14:F18) -> 64512082648 | G19: =SUM(G14:G18) -> 84502937008
B20: Activos no Corrientes
C21: Otros créditos | E21: 6 | F21: =+'Nota 6'!F18 -> 420624354 | G21: =101075919+562402870 -> 663478789
C22: Cuentas por cobrar comerciales | E22: 5
C23: Inversión en asociadas | E23: 8
C24: Propiedades, planta y equipo/Bienes de uso, neto | E24: 9 | F24: 34675331883 | G24: 34194465280
C25: Activos disponibles para la venta | E25: 10
C26: Activos intangibles | E26: 11 | F26: =+'Nota 11'!B15 -> 17558767487 | G26: 12586188555
C27: Goodwill | E27: 12 | F27: 0 | G27: 0
C28: Total activos no corrientes | F28: =SUM(F21:F27) -> 52654723724 | G28: =SUM(G21:G27) -> 47444132624
B29: Total Activos | F29: =+F28+F19 -> 117166806372 | G29: =+G28+G19 -> 131947069632
B30: PASIVOS Y PATRIMONIO NETO
B31: Pasivos corrientes | F31: -1
C32: Cuentas por pagar comerciales | E32: 13 | F32: =+'Nota 13'!D14 -> 46144227491 | G32: =31860815965+13164295801 -> 45025111766
C33: Préstamos a corto plazo | E33: 14 | F33: =+'Nota 14'!E35 -> 2161773516 | G33: 2754615098
C34: Porción corriente de la deuda a largo plazo | E34: 15
C35: Remuneraciones y cargas sociales a pagar | E35: 16 | F35: 762219420 | G35: 1199505928
C36: Impuestos a pagar | E36: 17
C37: Provisiones | E37: 18
C38: Otros pasivos corrientes | E38: 19 | F38: =+'Nota 19'!B17 -> 1.255430036e+10 | G38: 23875802943
C39: Total Pasivos Corrientes | F39: =SUM(F32:F38) -> 6.162252079e+10 | G39: =SUM(G32:G38) -> 72855035735
B40: Pasivos no corrientes
C41: Préstamos a largo plazo | E41: 14 | F41: =+'Nota 14'!E59 -> 2554175339 | G41: 4670700481
C42: Otros pasivos no corrientes | E42: 19 | F42: 0 | G42: 0
C43: Total pasivos no corrientes | F43: =+F41 -> 2554175339 | G43: =+G41 -> 4670700481
B45: Total Pasivos | F45: =+F39+F43 -> 6.417669613e+10 | G45: =+G39+G43 -> 77525736216
B46: Patrimonio Neto
C47: Capital integrado | E47: 20 | F47: 41500000000 | G47: 38855800000
C48: Aportes a Capitalizar | F48: 24000000 | G48: 21081542
C49: Prima de Emisión | F49: 4220000000 | G49: 4220000000
C50: Reserva de revalúo | E50: 21 | F50: 9420414506 | G50: 4633572953
C51: Reserva legal | E51: 21 | F51: 1277694431 | G51: 1272442740
C52: Reservas estatutarias | E52: 21
C53: Reservas facultatitvas | E53: 21 | F53: 989026484 | G53: 889244362
C54: Diferencia transitoria por conversión | E54: 22
C55: Resultados acumulados | E55: 23
C56: Resultado del Ejercicio | E56: 23 | F56: -4441025176 | G56: 4529191819
C57: Subtotal
C58: Interés minoritario | E58: 24 | F58: 0 | G58: 0
B59: Total Patrimonio Neto | F59: =SUM(F47:F56) -> 52990110245 | G59: =SUM(G47:G56) -> 54421333416
B60: Total Pasivos y Patrimonio Neto | F60: =+F45+F59 -> 1.171668064e+11 | G60: =+G45+G59 -> 131947069632
B62: Las notas que se acompañan forman parte integrante de estos estados.

Sheet EF
A1: BEPSA DEL PARAGUAY S.A.E.C.A.
A5: ESTADO DE FLUJOS DE EFECTIVO (Método directo)
A6: Al 30 de Junio de 2021
A7: Comparativo con igual periodo del año anterior
B11: 2021 | C11: 2020
A13: FLUJO DE EFECTIVO DE ACTIVIDADES OPERATIVAS
A14: Cobranzas efectuadas a clientes | B14: 21638497359 | C14: 4.41581871e+10
A15: Pagos efectuados a proveedores y empleados | B15: -3.728812733e+10 | C15: -5816787462
A16: Efectivo generado por las operaciones
A17: Intereses pagados | B17: -172198807 | C17: 192240989
A18: Otros ingresos y (egresos) - neto
A19: Pagos de impuesto a la renta | B19: 0 | C19: -609646983
A20: Flujo neto de efectivo de actividades operativas | B20: =SUM(B13:B19) -> -1.582182878e+10 | C20: =SUM(C13:C19) -> 3.792399365e+10
A22: FLUJO DE EFECTIVO DE ACTIVIDADES DE INVERSIÓN
A23: Adquisición de bienes de uso | B23: -6891316618 | C23: -1659165456
A24: Adquisición de bienes Curtiembre - fideicomitida
A25: Ventas de activos fijos | C25: 0
A26: Ventas de bienes de uso
A27: Intereses cobrados sobre inversiones
A28: Aquisición de intangibles | B28: -8649250033
A29: Aquisición de inversiones | C29: -806931475
A30: Flujo neto de efectivo de actividades de inversión | B30: =SUM(B23:B29) -> -1.554056665e+10 | C30: =SUM(C23:C29) -> -2466096931
A32: FLUJO DE EFECTIVO DE ACTIVIDADES DE FINANCIACIÓN
A33: (Disminución) Incremento de préstamos | B33: -2709366724 | C33: -1598278705
A34: Aportes de capital recibidos | B34: 2644200000
A35: Dividendos pagados | C35: 54773682.67
A36: Flujo neto de efectivo de actividades de financiamiento | B36: =SUM(B33:B35) -> -65166724 | C36: =SUM(C33:C35) -> -1543505022
A38: (Disminución) Incremento neto de efectivo | B38: =+B20+B30+B36 -> -3.142756215e+10 | C38: =+C20+C30+C36 -> 3.391439169e+10
A39: Efecto estimado de la diferencia de cambio sobre el saldo de efectivo | B39: 99914803 | C39: -95059408
A40: Efectivo al principio del año | B40: =+C42 -> 3.677959555e+10 | C40: 2960263262
A42: Efectivo al final del periodo | B42: =SUM(B38:B41) -> 5451948196 | C42: =SUM(C38:C41) -> 3.677959555e+10
A44: Las notas que se acompañan forman parte integrante de estos estados.

Sheet ER
A1: BEPSA DEL PARAGUAY S.A.E.C.A. | B1: Indice
A7: ESTADO DE RESULTADOS
A8: Al 30 de Junio de 2021
A9: Comparativo con igual período del año anterior
B12: Nota | C12: 2021 | D12: 2020
A13: Ventas | B13: 25 | C13: 35341521923 | D13: 34093017511
A14: Costo de ventas | B14: 26 | C14: -17747209703 | D14: -15870510620
A15: Utilidad bruta | C15: =+C13+C14 -> 17594312220 | D15: =+D13+D14 -> 18222506891
A16: Gastos de ventas | B16: 27 | C16: =-'Nota 27'!B35 -> -1251758967 | D16: =-'Nota 27'!E35 -> -331040381
A17: Gastos administrativos | B17: 27 | C17: =-'Nota 27'!C35 -> -20974837394 | D17: =-'Nota 27'!F35 -> -13359591090
A18: Otros ingresos y gastos operativos | B18: 28 | C18: 0
A19: Resultado operativo | C19: =+C17+C16+C15 -> -4632284141 | D19: =+D15+D16+D17+D18 -> 4531875420
A20: Ingresos financieros - neto | B20: 29 | C20: =+'Nota 29'!B14 -> 585512916 | D20: =+'Nota 29'!C10 -> 1074337526
A21: Gastos financieros - neto | B21: 29 | C21: =-'Nota 29'!F14 -> -394253951 | D21: =-'Nota 29'!G14 -> -564521127
A22: Subtotal | C22: =+C19+C20+C21 -> -4441025176 | D22: =+D21+D20 -> 509816399
A23: Resultado de inversiones en asociadas | B23: 30 | C23: 0 | D23: 0
A24: Resultados ordinarios antes de impuesto a la renta y participación minoritaria | C24: =+C22 -> -4441025176 | D24: =+D19+D22 -> 5041691819
A25: Resultado participación minoritaria | B25: 31 | C25: 0 | D25: 0
A26: Resultado ordinario antes del impuesto a la renta
A27: Impuesto a la renta | B27: 32 | C27: 0 | D27: -512500000
A28: Resultado neto de actividades ordinarias | C28: =++C24 -> -4441025176 | D28: =+D24+D27 -> 4529191819
A29: Resultado extraordinario neto de impuesto a la renta | B29: 33 | C29: 0 | D29: 0
A30: Resultado sobre actividades discontinuadas neto de impuesto a la renta | B30: 34 | C30: 0 | D30: 0
A31: Utilidad/(Pérdida) neta del año | C31: =+C28 -> -4441025176 | D31: =+D28 -> 4529191819
A32: Utilidad neta por acción ordinaria | B32: 35 | C32: =+C31/(EVPN!C34/100000) -> -10701.26548 | D32: =+D31/(EVPN!C25/100000) -> 11656.41119
A35: Las notas que se acompañan forman parte integrante de estos estados.

Sheet EVPN
A1: BEPSA DEL PARAGUAY S.A.E.C.A. | G1: Indice
E4: ESTADO DE EVOLUCIÓN DEL PATRIMONIO NETO
G5: Al 30 de Junio de 2021
A6: Comparativo con igual periodo del año anterior
C10: Aporte de los propietarios | K10: Ganancias reservadas
C11: Capital suscripto e integrado | D11: Aporte para aumento capital | E11: Primas de emisión | G11: Reserva de revalúo | I11: Reserva de revalúo técnico | K11: Reserva legal | M11: Reserva facultativa | O11: Resultados acumulados | Q11: Interes Minoritario | S11: Total
D12: aumento de capital | O12: Total
A14: Saldo al 30 de Junio de 2019 | C14: 30000000000 | D14: 3045081542 | E14: 4000000000 | G14: 4569970537 | K14: 1015114090 | O14: 2399119537 | S14: =SUM(C14:R14) -> 45029285706
A15: Cambio en política contable (Nota….)
A16: Saldo reestructurado
A17: Distribución de dividendos s/Acta de Asamblea Ordinaria N°… de fecha………
A18: Integración del capital social | C18: 8855800000 | D18: -3024000000 | O18: -2399119537
A19: Reducción del capital social s/Acta de Asamblea General Ordinaria N°… de fecha……..
A20: Prima de emisión | E20: 220000000 | G20: 0
A21: Revalúo de activos fijos | G21: 63602416
A22: Revalúo técnico
A23: Resultado del año | K23: 257328650 | M23: 889244362 | O23: 4529191819
A25: Saldo al 30 de Junio de 2020 | C25: =SUM(C13:C24) -> 38855800000 | D25: =SUM(D13:D24) -> 21081542 | E25: =SUM(E13:E24) -> 4220000000 | F25: =SUM(F13:F24) -> 0 | G25: =SUM(G13:G24) -> 4633572953 | H25: =SUM(H13:H24) -> 0 | I25: 0 | J25: 0 | K25: 1272442740 | L25: 0 | M25: 889244362 | N25: 0 | O25: 4529191819 | Q25: 0 | S25: =SUM(C25:R25) -> 54421333416
A26: Distribución de dividendos s/Acta de Asamblea General Ordinaria N°… de fecha………
A27: Movimientos del periodo | M27: 0 | N27: 0 | O27: -4424158006
A28: Integración del capital social | C28: 2644200000 | D28: =+D34-D25 -> 2918458 | O28: 0
A29: Reserva legal | G29: 0 | K29: 5251691 | O29: -5251691
A30: Reserva Facultativa | M30: 99782122 | O30: -99782122
A31: Revalúo de activos fijos | G31: 4786841553
A32: Desafectación de la reserva de revalúo técnico
A33: Resultado del año | M33: 0 | O33: =+ER!C31 -> -4441025176
A34: Saldo al 30 de Junio de 2021 | C34: =SUM(C25:C33) -> 41500000000 | D34: 24000000 | E34: =SUM(E25:E33) -> 4220000000 | F34: 0 | G34: 9420414506 | H34: 0 | I34: 0 | J34: 0 | K34: =SUM(K25:K33) -> 1277694431 | L34: 0 | M34: 989026484 | N34: 0 | O34: -4441025176 | P34: 0 | Q34: 0 | S34: =SUM(C34:R34) -> 52990110245
A36: Las notas que se acompañan forman parte integrante de estos estados.

Sheet Nota1
A1: =Indice!C1 -> BEPSA DEL PARAGUAY S.A.E.C.A. | I1: BG
A6: NOTAS A LOS ESTADOS FINANCIEROS CORRESPONDIENTES AL PERIODO TERMINADO | H6: =IFERROR(IF(Indice!B6="","Al dia... de mes… de año 2XX2…","Al "&DAY(Indice!B6)&" de "&VLOOKUP(MONTH(Indice!B6),Indice!S:T,2,0)&" de "&YEAR(Indice!B6)),"Al dia... de mes… de año 2XX2…") -> Al 30 de Junio de 2021
A7: Presentadas en forma comparativa con el periodo terminado | F7: =IFERROR("Al "&DAY(Indice!B6)&" de "&VLOOKUP(MONTH(Indice!B6),Indice!S:T,2,0)&" de "&YEAR(Indice!B6-365),"Al dia... de mes… de año 2XX1…") -> Al 30 de Junio de 2020
A11: NOTA 1 – DESCRIPCIÓN DE LA NATURALEZA Y DEL NEGOCIO DE LA COMPAÑÍA
A12: BEPSA DEL PARAGUAY SOCIEDAD ANÓNIMA fue constituida por escritura Nº 05, de fecha 19 de enero de 1990. Sus estatutos sociales fueron aprobados y su personería jurídica reconocida por Decreto Nº 5.411 del Poder Ejecutivo de fecha 09 de abril de 1990 y sus modificaciones por escritura pública Nº 34, del 26 de marzo de 1991, escritura pública Nº 91 del 06 de agosto de 1993, escritura pública Nº 252 del 18 de julio de 1994, por escritura pública Nº 384 del 03 de julio de 1996, escritura pública Nº 93 del 08 de noviembre de 2001 y su complementaria escritura pública Nº 16 del 10 de abril de 2002, escritura pública Nº 20 del 10 de octubre de 2002 y su complementaria escritura pública Nº 31 del 16 de diciembre de 2002, escritura pública Nº 99 del 7 de agosto de 2003, escritura pública Nº 77 del 13 de mayo de 2009, escritura pública N° 68 del 16 de diciembre de 2013, escritura pública Nº 51 del 15 de Diciembre de 2014, escritura publica Nº 24 del 06 de mayo de 2016, escritura publica Nº 13 del veinte y tres de abril de 23/04/18, folio 12 en fecha 21/05/19, Nº 40 folio 151 de fecha 24/06/19.La sociedad tiene por objeto principal dedicarse a la prestación de servicios de una Red Electrónica de Transferencia a las entidades bancarias, financieras, comerciales e industriales del mercado paraguayo, a otras redes de servicios electrónicos regionales o internacionales y a las entidades públicas, autárquicas o no, nacionales o municipales. Los servicios que la sociedad BEPSA DEL PARAGUAY SOCIEDAD ANÓNIMA brinda, son todos aquellos que requieren de procesamiento electrónico computarizado, como ser: red de cajeros automáticos, red de terminales de puntos de venta, sistema de administración, sistemas de tarjeta de crédito, banco en casa, sistema de acceso a base de datos y de información financiera bursátil, cotizaciones de mercado o cualquier otro tipo de procesamiento de información y transferencias de fondos y datos que los adelantos tecnológicos permitan brindar en el futuro. La sociedad se encuentra autorizada y tiene plena capacidad jurídica para entender y desarrollar cualquier tipo de actividades comerciales, industriales, inmobiliarias, empresariales, actual como agencia de turismo y afines o cualquier otra actividad lícita sin más limitaciones que las previstas en las leyes respectivas y sus estatutos.

Sheet Nota 2
A1: =Indice!C1 -> BEPSA DEL PARAGUAY S.A.E.C.A. | I1: BG
A6: NOTA 2 - RESUMEN DE LAS PRINCIPALES POLÍTICAS CONTABLES
A7: Resumen de las principales políticas contables: a modo referencial, se incluyen las siguientes revelaciones de políticas contables en estados financieros de uso general que podrá ser tenida en consideración por las sociedades emisoras para la preparación de este capítulo de los estados financieros:
A10: a. Bases de contabilización (Según NIF Bases de preparación de los Estados Financieros)
A11: Los estados financieros se han preparado siguiendo los criterios de las Normas de Información Financiera (NIF) emitidas por el Consejo de Contadores Públicos del Paraguay sobre la base de costos históricos, excepto para el caso de activos y pasivos en moneda extranjera y las propiedades, planta y equipo según se explica en los puntos c ) y k), y no reconocen en forma integral los efectos de la inflación sobre la situación patrimonial y financiera de la sociedad, sobre los resultados de sus operaciones y los flujos de efectivo, en atención a que la corrección monetaria no constituye una práctica contable obligatoria en el Paraguay.
A12: De haberse aplicado una corrección monetaria integral de los estados financieros, podrían haber surgido diferencias en la presentación de la situación patrimonial y financiera de la sociedad, en los resultados de sus operaciones y en los flujos de efectivo al 30-06-2021, y por los ejercicios cerrados el, 30 de junio de 2020 y 2021. Según el índice general de precios del consumo (IPC) publicado por el Banco Central del Paraguay, la inflación fue de 1,5% en el año 2021 y 2,2% en el año 2020. Obs: Datos a incorporar para cierre del ejercicio
A15: b. Uso de estimaciones contables
A16: La preparación de los presentes estados financieros requiere que la Gerencia de la sociedad realice estimaciones y evaluaciones que afectan el monto de los activos y pasivos registrados y contingentes, como así también los ingresos y egresos registrados en el ejercicio. Los resultados reales futuros pueden diferir de las estimaciones y evaluaciones realizadas a la fecha de preparación de los presentes estados financieros.
A18: c. Moneda extranjera
A19: Los activos y pasivos en moneda extranjera se valúan a los tipos de cambio vigentes a la fecha de cierre del ejercicio.
A20: Las diferencias de cambio originadas por fluctuaciones en los tipos de cambio producidos entre las fechas de concertación de las operaciones y su liquidación o valuación al cierre del ejercicio, son reconocidas en resultados.
C23: =IFERROR(IF(Indice!B6="","2XX2",YEAR(Indice!B6)),"2XX2") -> 2021 | G23: =IFERROR(YEAR(Indice!B6-365),"2XX1") -> 2020
B24: Indicar moneda | C24: Simbología según ISO 4217 | D24: Miles de G. | F24: Indicar moneda | G24: Simbología según ISO 4217 | H24: Miles de G.
A25: Activos | B25: Dolares | C25: USD | D25: 7451163506 | F25: Dolares | G25: USD | H25: 6422509411
A27: Pasivos | B27: Dolares | C27: USD | D27: 6284707972 | F27: Dolares | G27: USD | H27: 6853377633
A29: Posición neta | D29: =+D25-D27 -> 1166455534 | H29: =+H25-H27 -> -430868221.5
A32: A la fecha de emisión de estos estados financieros, el tipo de cambio de la moneda extranjera 6761,37 (Dolares) no varió sustancialmente (varió en un -1,00%) con respecto al vigente al 30 de junio 2020
A34: d. Efectivo y equivalentes de efectivo
A35: Se considerarán dentro del concepto de efectivo los saldos en efectivo, disponibilidades en cuentas bancarias y toda inversión de muy alta liquidez, con vencimiento originalmente pactado no superior a tres meses.
A38: e. Inversiones
A39: Las inversiones temporales se valúan de acuerdo a los siguientes criterios de valuación:  Valores mobiliarios: a su valor de cotización al cierre del año/período menos los gastos estimados de venta. Ver Nota ....  Colocaciones financieras en moneda local: a su valor nominal más los intereses devengados al cierre del año/período. Ver Nota ....  Colocaciones financieras en moneda extranjera: a su valor de cotización al cierre del año/período más intereses devengados a ese momento. Ver Nota ....  Las inversiones no corrientes en sociedades donde no se ejerce el control, se valúan a su valor patrimonial proporcional. Ver Nota ....
A40: Obs.: En caso de la existencia de saldos y transacciones con partes relacionadas, la información que corresponda a ser expuesta por la sociedad, se ajustará a lo requerido por la Norma de Información Financiera N° 7 Revelaciones de partes relacionadas.
A43: f. Previsión para cuentas de dudoso cobro/incobrables
A44: Las previsiones para cuentas de dudoso cobro se determinan al cierre de cada ejercicio y/o mensualmente sobre la base del estudio de la cartera de créditos realizado con el objeto de determinar la porción no recuperable de las cuentas a cobrar. Las previsiones para cuentas de dudoso cobro se determinan mensualmente de acuerdo con el siguiente esquema de cálculo: (Indicar política de constitución de previsiones)
A48: g. Inventarios
A49: Las existencias se valúan al menor entre su costo de adquisición o de producción y su valor neto de realización (NIF 12, párrafo 5). Para determinar el consumo (baja de inventarios) se aplicarán las fórmulas de costeo siguientes: FIFO, (Primero Entrado Primero en Salir – PEPS); PPP (Precio Promedio Ponderado); o identificación específica (NIF 12, párrafos 16 a 20). Ver Nota ...
A52: h. Activos disponibles para la venta
A53: Los activos disponibles para la venta representan bienes que fueron desafectados de la actividad productiva y se mantienen con el único objetivo de ser vendidos. Los mismos se valúan, sin amortizar, al menor entre el valor de mercado de los mismos y su costo (valor libro) al momento de su designación como disponibles para la venta.
A56: i. Previsiones para desvalorización y deterioro de inventarios
A57: Las previsiones para desvalorización y deterioro de inventarios han sido estimadas tomando como base la valorización del stock deteriorado existente al cierre del ejercicio.
A59: j. Propiedades, planta y equipo
A60: Las propiedades, planta y equipo se exponen a su costo histórico considerando el valor residual determinado por la Autoridad Tributaria , menos la correspondiente depreciación acumulada. El incremento neto por la re-expresión se acredita a la respectiva reserva patrimonial, cuyo saldo puede ser utilizado únicamente para aumentar el capital.
A61: El costo de las mejoras que extienden la vida útil de los bienes o aumentan su capacidad productiva es imputado a las cuentas respectivas del activo. Los gastos de mantenimiento son cargados a resultados.
A62: La depreciación es calculada por el método de línea recta, saldo decreciente o suma de unidades (la emisora elige uno de los tres métodos con base en el patrón esperado de beneficios económicos y lo aplica consistentemente de ejercicio a ejercicio a menos que haya cambios significativos en dicho patrón considerado -NIF 11 párrafo 43 y 48). Ver Nota ...
A63: Los efectos de los ajustes sobre Propiedades, Planta y Equipo de operaciones discontinuadas se exponen formando parte de la línea “Resultados sobre actividades discontinuadas neto de impuesto a la renta” en el Estado de Resultados.
A66: k. Intangibles
A67: Los intangibles se exponen a su costo incurrido menos las correspondientes amortizaciones acumuladas al cierre del año.
A68: Las amortizaciones son calculadas por el método que refleja el patrón de consumo de los beneficios económicos derivados de los intangibles o por el método de línea recta (se explica el método elegido) si el patrón no pudiera ser determinado de forma fiable (NIF 15, párrafo 64). Ver Nota ...
A69: Este rubro incluye costos incurridos por la sociedad relacionados con ingresos futuros.
A72: l. Goodwill
A73: El saldo de esta cuenta representa la diferencia entre el valor pagado y el valor razonable de los activos netos adquiridos por la operación de compra de la subsidiaria – Compañía XX.
A74: A los efectos de la determinación del monto recuperable, anualmente se efectúa una evaluación del mismo sobre la base de los flujos netos descontados. En caso que dichos flujos descontados superen el valor contable se procederá al registro de la correspondiente desvalorización del Goodwill.
A75: Las estimaciones sobre los flujos de fondos netos son realizadas por la Gerencia sobre la base de las mejores estimaciones disponibles al momento de la preparación de los presentes estados financieros. Tal como lo establece la NIF 13 emitida por el Consejo de Contadores Públicos del Paraguay, el Goodwill no se amortiza, sino se afecta a resultados por su deterioro según la NIF 18.
A78: m. Reconocimiento de ingresos y egresos
A79: Los ingresos y egresos son reconocidos en función de su devengamiento.
A82: n. Impuesto a la renta
A83: El impuesto a la renta que se carga a los resultados del año se basa en la utilidad contable antes de este concepto, ajustada por las partidas que la ley incluye o excluye para la determinación de la utilidad gravable a la que se aplica la tasa legal vigente del impuesto y por el reconocimiento del cargo o el ingreso originado por la aplicación del impuesto diferido, si los hubiere.
A85: o. Restricciones a la distribución de utilidades
A86: Deberá mencionarse cualquier tipo de restricción sobre la distribución de utilidades como ser restricciones estatutarias o de entes reguladores y asambleas.
A88: p. Derechos en Fideicomiso
A89: En caso de que la sociedad cuente con Fideicomisos vigentes, deberá exponer claramente en notas a los Estados Financieros, dentro del rubro correspondiente al cual pertenece el bien que ha sido objeto del fideicomiso, ya sea “Créditos/Inventarios u otros activos”, restando al valor del rubro perteneciente, al igual que en la constitución de Fideicomisos de Garantía.
A90: Deberá indicarse además los datos del contrato de fideicomiso, del fiduciario, monto, vencimiento. En caso de emisiones a través de un Patrimonio Autónomo, registradas en la CNV, deberán agregar los datos de registro, destino de los fondos, calificación de riesgo si lo tuviere.
A92: q. Otros principios, prácticas y métodos
A93: Seguidos en general para cuantificar, valuar y exponer los hechos y bienes económicos en los estados financieros y que fueran relevantes para el lector de los mismos.
A94: Obs.: Cambios en políticas contables y su efecto sobre los estados financieros, como así también las modificaciones o ajustes de la información de ejercicios anteriores deben exponerse conforme a lo requerido por la Norma de Información Financiera N° 6 Utilidad o pérdida neta por el período, errores fundamentales y cambios en políticas contables

Sheet Nota 3
A1: BEPSA DEL PARAGUAY S.A.E.C.A. | E1: BG
A2: Obs.: Revelar situación en el caso de contar con disponibilidad restringida
A7: NOTA 3 - EFECTIVO Y EQUIVALENTE DE EFECTIVO
A9: La composición de la cuenta es la siguiente:
A11: Concepto | C11: 2021 | D11: 2020
A13: Caja
A14: Recaudaciones a depositar | C14: 2502087.1 | D14: 3031400
A15: Bancos Locales - Moneda local Guaraníes | C15: 3679646976 | D15: 31799234059
A16: Bancos Locales - Moneda extranjera Dólares | C16: 1769799133 | D16: 4977330088
A17: Bancos Locales - Moneda extranjera otros | C17: 0 | D17: 0
A18: Bancos en el Extranjero - Moneda extranjera Dólares | C18: 0 | D18: 0
A19: (nuevas cuentas a incluir)
A20: Total | C20: =SUM(C14:C19) -> 5451948196 | D20: =SUM(D14:D19) -> 36779595547

Sheet Nota 4
A1: BEPSA DEL PARAGUAY S.A.E.C.A. | D1: BG
A4: NOTA 4 - INVERSIONES TEMPORALES
A6: La composición de la cuenta es la siguiente:
B7: En miles de guaranies
A8: Concepto | B8: 2021 | C8: 2020
A9: Inversiones en Titulos del Sistema Financiero Local - Moneda Local Guaraníes | C9: 5092734233
A10: Inversiones en Titulos del Sistema Financiero Local - Moneda Extranjera Dólares
A11: Inversiones en Titulos del Sistema Financiero Local - Moneda Extranjera otros
A12: Inversiones en Mercado Bursatil Local - Moneda Local Guaraníes
A13: Inversiones en Mercado Bursatil Local - Moneda Extranjera Dólares
A14: Inversiones en Mercado Bursatil Extranjera - Moneda Extranjera Dólares
A15: Inversiones en Mercado Bursatil Extranjera - Moneda Extranjera otros
A16: Otras inversiones - Moneda Local Guaraníes
A17: Otras inversiones - Moneda Extranjera Dólares
A18: Total | B18: 0 | C18: 5092734233

Sheet Nota 5
A1: BEPSA DEL PARAGUAY S.A.E.C.A. | F1: BG
A2: Detallar cartera vencida y no vencida por clientes locales, extranjeros y partes relacionadas
A3: Se indicarán en este rubro todos los créditos a favor de la empresa provenientes de las ventas de Mercaderías y/o servicios (atendiendo a la actividades ordinarias de la empresa), separando las ventas locales en moneda nacional y/o extranjera de las ventas fuera del país en moneda nacional y/o extranjera
A5: NOTA 5 – CUENTAS POR COBRAR COMERCIALES
A6: Las cuentas a cobrar comerciales a corto plazo se integran como sigue:
C7: En miles de guaraníes
C8: 2021 | D8: 2020 | F8: Composición de la cartera de créditos por ventas | G8: 2021
A9: Deudores por ventas locales | B9: Moneda Local Guaraníes | C9: =52994397170-C15 -> 51977678081 | D9: =38049372606-D15 -> 37468407555 | F9: Situación | G9: Monto | H9: % Previsiones sobre Cartera
A10: Deudores por ventas locales | B10: Moneda Extranjera Dólares | F10: A Total Cartera no Vencida | G10: 49540539328 | H10: 0
A11: Deudores por ventas locales | B11: Moneda Extranjera otros | F11: B. Total Cartera Vencida | G11: 3453857842
A12: Deudores por ventas en el exterior | B12: Moneda Local Guaraníes | F12: Composición Cartera Vencida
A13: Deudores por ventas en el exterior | B13: Moneda Extranjera Dólares | F13: Normal | G13: =+G11-G14 -> 814621574 | H13: 0
A14: Deudores por ventas en el exterior | B14: Moneda Extranjera otros | F14: En Gestión de Cobro | G14: =-G19 -> 2639236268 | H14: 1
A15: Deudores - Entidad relacionada | B15: Moneda Local Guaraníes | C15: =+'Nota 40'!B12 -> 1016719089 | D15: =+'Nota 40'!C12 -> 580965051 | F15: En Gestión de Cobro Judicial | G15: 0 | H15: 0
A16: Deudores - Entidad relacionada | B16: Moneda Extranjera Dólares
A17: Deudores - Entidad relacionada | B17: Moneda Extranjera otros | F17: Total de la cartera de créditos (A+B) | G17: =+G10+G11 -> 52994397170
A18: Cheques adelantados recibidos de clientes | B18: Moneda Local Guaraníes
A19: Cheques adelantados recibidos de clientes | B19: Moneda Extranjera Dólares | F19: (-) Total Previsiones | G19: -2639236268
A20: Cheques adelantados recibidos de clientes | B20: Moneda Extranjera otros
A21: Cheques rechazados | B21: Moneda Local Guaraníes | F21: TOTAL NETO DE LA CARTERA DE CRÉDITOS | G21: =+G17+G19 -> 50355160902
A22: Cheques rechazados | B22: Moneda Extranjera Dólares
A23: Otros | B23: Moneda Local Guaraníes | F23: Observaciones
A24: Otros | B24: Moneda Extranjera Dólares | F24: Criterios de Clasificación utilizados | G24: De | H24: A
A25: Otros | B25: Moneda Extranjera otros | F25: Normal | G25: 1 | H25: 0
A26: Menos Previsiones | C26: -2639236268 | D26: -1397236268 | F26: En Gestión de Cobro | G26: 31 | H26: 1
A27: Total | C27: =SUM(C9:C26) -> 50355160902 | D27: =SUM(D9:D26) -> 36652136338 | F27: En Gestión de Cobro Judicial | G27: 61 | H27: 1
A30: Las cuentas a cobrar comerciales a largo plazo se integran como sigue:
C31: En miles de guaraníes
C32: 2021 | D32: 2020
A33: Deudores por ventas locales | B33: Moneda Local Guaraníes
A34: Deudores por ventas locales | B34: Moneda Extranjera Dólares
A35: Deudores por ventas locales | B35: Moneda Extranjera otros
A36: Deudores por ventas en el exterior | B36: Moneda Local Guaraníes
A37: Deudores por ventas en el exterior | B37: Moneda Extranjera Dólares
A38: Deudores por ventas en el exterior | B38: Moneda Extranjera otros
A39: Deudores - Entidad relacionada | B39: Moneda Local Guaraníes
A40: Deudores - Entidad relacionada | B40: Moneda Extranjera Dólares
A41: Deudores - Entidad relacionada | B41: Moneda Extranjera otros
A42: Cheques adelantados recibidos de clientes | B42: Moneda Local Guaraníes
A43: Cheques adelantados recibidos de clientes | B43: Moneda Extranjera Dólares
A44: Cheques adelantados recibidos de clientes | B44: Moneda Extranjera otros
A45: Deudores en gestión judicial | B45: Moneda Local Guaraníes
A46: Deudores en gestión judicial | B46: Moneda Extranjera Dólares
A47: Deudores en gestión judicial | B47: Moneda Extranjera otros
A48: Cheques rechazados | B48: Moneda Local Guaraníes
A49: Cheques rechazados | B49: Moneda Extranjera Dólares
A50: Otros | B50: Moneda Local Guaraníes
A51: Otros | B51: Moneda Extranjera Dólares
A52: Otros | B52: Moneda Extranjera otros
A53: Menos Previsiones
A54: Total | C54: 0 | D54: 0

Sheet Nota 6
A1: BEPSA DEL PARAGUAY S.A.E.C.A. | D1: BG
A4: NOTA 6 - OTROS CRÉDITOS
A6: El rubro de otros créditos se compone como sigue:
A8: Corrientes | E8: No corrientes
A10: Concepto | B10: 2021 | C10: 2020 | E10: Concepto | F10: 2021 | G10: 2020
A11: Anticipos a proveedores | B11: 3358116584 | E11: Garantía de Alquiler | F11: 102688956
A12: Gastos pagados por adelantado | B12: 1185163654 | C12: 736944545 | E12: I.V.A. Crédito fiscal
A13: Anticipo Impuesto a la Renta | E13: Anticipos a proveedores | F13: 0 | G13: 101075919
A14: Retención Impuesto a la Renta | E14: (nuevas cuentas a incluir)
A15: Retención Impuesto al Valor agregado | E15: Ceregral S.A.E.C.A. | F15: 1006960486 | G15: 1006960486
A16: Deudores Varios | B16: 102271120 | C16: 872989006 | E16: Menos: Previsión para Inversiones | F16: -734242005 | G16: -482501889
A17: Anticipos al personal | B17: 0 | C17: 36676232 | E17: Obras de arte | F17: 45216917 | G17: 37944273
A18: Creditos Fiscales | B18: 4059422192 | C18: 4331861107 | E18: Total | F18: =SUM(F11:F17) -> 420624354 | G18: =SUM(G11:G17) -> 663478789
A19: Menos: Previsión para otros créditos
A20: (nuevas cuentas a incluir)
A21: Total | B21: =SUM(B11:B20) -> 8704973550 | C21: =SUM(C11:C20) -> 5978470890

Sheet Nota 7
A1: =Indice!C1 -> BEPSA DEL PARAGUAY S.A.E.C.A. | D1: BG
A4: NOTA 7 – INVENTARIOS
A6: Los bienes de cambio están compuestos de la siguiente manera:
B7: En miles de guaranies
A8: Concepto | B8: =IFERROR(IF(Indice!B6="","2XX2",YEAR(Indice!B6)),"2XX2") -> 2021 | C8: =IFERROR(YEAR(Indice!B6-365),"2XX1") -> 2020
A9: Mercaderías | B9: 0 | C9: 0
A10: Productos terminados | B10: 0 | C10: 0
A11: Productos en proceso | B11: 0 | C11: 0
A12: Materia prima | B12: 0 | C12: 0
A13: (nuevas cuentas a incluir) | B13: 0 | C13: 0
A14: (-) Previsión para desvalorización y deterioro de inventario | B14: 0 | C14: 0
A15: Total | B15: =SUM(B9:B14) -> 0 | C15: =SUM(C9:C12) -> 0

Sheet Nota 8
A1: =Indice!C1 -> BEPSA DEL PARAGUAY S.A.E.C.A. | D1: BG
A4: Nota 8 - INVERSIONES EN ASOCIADAS
A5: En miles de guaraníes
A6: Las inversiones en sociedades donde no se ejerce control se describen a continuación
A7: Periodo | B7: =IFERROR(IF(Indice!B6="","2XX2",YEAR(Indice!B6)),"2XX2") -> 2021 | C7: =IFERROR(YEAR(Indice!B6-365),"2XX1") -> 2020
A8: Total Inversión | B8: =SUM($I$13:I18) -> 0 | C8: =SUM($I$13:J18) -> 0
A10: a) Datos sobre la sociedad: | G10: a) Datos sobre la inversión:
D11: =IFERROR(IF(Indice!B6="","2XX2",YEAR(Indice!B6)),"2XX2") -> 2021
A12: Nombre de Sociedad | B12: RUC | C12: Cantidad de acciones | D12: Total Patrimonio neto | E12: Total del resultado | G12: Cantidad de acciones | H12: Participación sobre los votos (%) | I12: Total Inversión (miles de Gs) | J12: Participación sobre el Patrimonio Neto (%) | K12: Total valuación patrimonial proporcional | L12: Resultado sobre inversiones
K13: =J13*D13 -> 0 | L13: =J13*E13 -> 0
K14: 0 | L14: 0
K15: 0 | L15: 0
K16: 0 | L16: 0
K17: 0 | L17: 0
K18: 0 | L18: 0

Sheet Nota 9
A1: BEPSA DEL PARAGUAY S.A.E.C.A. | L1: BG
A5: Obs.:
A6: Incluir aclaraciones en los siguientes casos:
A7: 1. Cuando los bienes de uso tienen alguna restricción sobre su utilización, como por ejemplo cuando están garantizando obligaciones. En su caso también hacer referencia a la nota correspondiente.
A8: 2. Cuando exista alguna previsión por desvalorización (“deterioro”), detallando la evolución de la misma en el transcurso del año.
A9: 3. Si se están capitalizando intereses al costo de bienes de uso. En su caso deberá aclararse la tasa utilizada para la capitalización.
A10: Ver adicionalmente Norma de Información Financiera N° 11 Propiedades, planta y equipo
A12: NOTA 9 - PROPIEDADES, PLANTA Y EQUIPO - NETO
J13: -1
B15: Costo histórico revaluado al inicio del año | C15: Adquisiciones | D15: Bajas | E15: Revalúo del año | F15: Valor de origen revaluado al final del año | G15: Depreciación acumulada revaluada al inicio del año | H15: Depreciación del año | I15: Bajas de depreciaciones acumuladas | J15: Revalúo depreciación acumulada del año | K15: Depreciación acumulada revaluada al final del año | L15: Valor neto contable
L16: 2021 | M16: 2020
A17: Bienes de uso
A18: Muebles y equipos en general | B18: 2499222139 | G18: 1419467370 | H18: 98639220 | K18: =(G18+H18)-I18 -> 1518106590 | L18: =(M18-H18)+C18 -> 981115549 | M18: =+B18-G18 -> 1079754769
A19: Maquinarias | B19: 11393282351 | G19: 11325879712 | H19: 1636362 | K19: =(G19+H19)-I19 -> 11327516074 | L19: =(M19-H19)+C19 -> 65766277 | M19: 67402639
A20: Equipos POS | B20: 29475096983 | C20: =4255563755-3176617632+2485609299 -> 3564555422 | G20: 6786070352 | H20: 1472779494 | K20: 8258849846 | L20: 24780802559 | M20: 22689026631
A21: Herramientas y equipos | B21: 1163441339 | G21: 322415382 | H21: 68482842 | K21: 390898224 | L21: 772543115 | M21: 841025957
A22: Equipos de informática | B22: 10801829163 | G22: 7462726233 | H22: 806211198 | K22: 8268937431 | L22: 2532891732 | M22: 3339102930
A23: Maquinarias POS | B23: 4503269975 | G23: 4503269975 | K23: 4503269975 | L23: 0 | M23: 0
A24: Software | B24: 4840637903 | G24: 4840637903 | K24: 4840637903 | L24: 0 | M24: 0
A25: Automóviles, camionetas, camiones | B25: 605624403 | G25: 565740524 | H25: 3958644 | K25: 569699168 | L25: 35925235 | M25: 39883879
A26: Bienes restantes | B26: 16793235376 | G26: 12191153452 | H26: 540698814 | K26: 12731852266 | L26: 4061383110 | M26: 4602081924
A27: Montajes e instalaciones | B27: 1220825160 | G27: 1002343356 | H27: 18621216 | K27: 1020964572 | L27: 199860588 | M27: 218481804
A28: Derechos adquiridos | B28: 405859729 | G28: 405859729 | K28: 405859729 | L28: 0 | M28: 0
A29: Constr. o mejoras en predio ajeno | B29: 2247137482 | G29: 953450456 | H29: 73462968 | K29: 1026913424 | L29: 1220224058 | M29: 1293687026
A30: Parcelas Jardín de la Paz | B30: 24017721 | C30: 801939 | I30: 0 | K30: 0 | L30: 24819660 | M30: 24017721
A31: Total | B31: =SUM(B18:B30) -> 85973479724 | C31: =SUM(C18:C30) -> 3565357361 | D31: 0 | E31: 0 | F31: 0 | G31: =SUM(G18:G30) -> 51779014444 | H31: 3084490758 | I31: 0 | J31: 0 | K31: =SUM(K18:K30) -> 54863505202 | L31: =SUM(L18:L30) -> 34675331883 | M31: =SUM(M18:M30) -> 34194465280
D33: =+I31-D31 -> 0

Sheet Nota 10
A1: =Indice!C1 -> BEPSA DEL PARAGUAY S.A.E.C.A. | C1: BG
A4: NOTA 10 – ACTIVOS DISPONIBLES PARA LA VENTA
B5: En miles de guaranies
B6: =IFERROR(IF(Indice!B6="","2XX2",YEAR(Indice!B6)),"2XX2") -> 2021 | C6: =IFERROR(YEAR(Indice!B6-365),"2XX1") -> 2020
A7: Propiedad, planta y equipo
A8: (Detallar bienes de uso) | B8: N/A
A9: Total
A11: Activos intangibles
A12: (Detallar activos intangibles)
A13: Total
A15: Inversiones
A16: (Detallar Inversiones
A17: Total
A19: Total general | C19: =C9+C13+C17 -> 0

Sheet Nota 11
A1: BEPSA DEL PARAGUAY S.A.E.C.A. | F1: BG
A4: NOTA 11 – ACTIVOS INTANGIBLES
B5: En miles de guaranies
A6: Activos intangibles | B6: 2021 | C6: 2020
A7: Desarrollo de Software | B7: 14099911201 | C7: 5655094842
A8: Activos Intangibles | B8: 9032830399 | C8: 8462969061
A9: Licencias Adquiridas | B9: 2263056482 | C9: 2628484146
A10: Amortizaciones
A11: Desarrollo de Software | B11: -3942335389 | C11: -2686838835
A12: Activos Intangibles | B12: -2733081233 | C12: -1199793539
A13: Licencias Adquiridas | B13: -1161613973 | C13: -273727120
A15: Total general | B15: =SUM(B7:B14) -> 17558767487 | C15: =SUM(C7:C14) -> 12586188555

Sheet Nota 12
A1: =Indice!C1 -> BEPSA DEL PARAGUAY S.A.E.C.A. | E1: BG
A5: NOTA 12 – GOODWILL
B6: En miles de guaranies
A7: Goodwill | B7: =IFERROR(IF(Indice!B6="","2XX2",YEAR(Indice!B6)),"2XX2") -> 2021 | C7: =IFERROR(YEAR(Indice!B6-365),"2XX1") -> 2020
B8: N/A
A11: Total general | B11: =SUM(B8:B10) -> 0 | C11: =SUM(C8:C10) -> 0

Sheet Nota 13
A1: BEPSA DEL PARAGUAY S.A.E.C.A. | C1: BG
A4: NOTA 13 – CUENTAS POR PAGAR COMERCIALES
A5: En miles de guaranies
A6: Las cuentas por pagar comerciales se componen como sigue:
A8: Corrientes | B8: Simbología según ISO 4217 | C8: Indicación de Moneda | D8: 2021 | E8: 2020
A9: Proveedores - Entidades Relacionadas | D9: 2455485683 | E9: 209161000
A10: Otros proveedores del exterior
A11: Proveedores locales | D11: 4.212967019e+10 | E11: 4.189942516e+10
A12: Proveedores Dolares | D12: 1559071618 | E12: 2916525606
A13: (nuevas cuentas a incluir)
A14: Total cuentas a pagar por comerciales | D14: =SUM(D9:D13) -> 46144227491 | E14: =SUM(E9:E13) -> 4.502511177e+10
A18: No Corrientes | B18: Simbología según ISO 4217 | C18: Indicación de Moneda | D18: 2021 | E18: 2020
A19: Proveedores - Entidades Relacionadas
A20: Otros proveedores del exterior
A21: Proveedores locales
A22: (nuevas cuentas a incluir)
A23: Total cuentas a pagar por comerciales | D23: 0 | E23: 0

Sheet Nota 14
A1: BEPSA DEL PARAGUAY S.A.E.C.A. | E1: BG | L1: BG
A4: NOTA 14 – PRESTAMOS A CORTO Y LARGO PLAZO
A6: (a) Equivalentes al tipo de cambio referencial de la fecha de presentacion
A7: (b) Obligaciones garantizadas por valor de guaraníens
A11: Corrientes
B12: 20X2 | D12: 2021 | J12: 2020
A13: Préstamos de Entidades Locales | B13: Vencimiento | C13: Símbolo de Moneda | D13: Moneda | E13: Importe (miles de Gs) | F13: Tipo de garantía | H13: Vencimiento | I13: Símbolo de Moneda | J13: Moneda | K13: Importe (miles de Gs) | L13: Tipo de Garantía
A14: Banco Continental S.A.E.C.A. | B14: 2023 | C14: PYG | D14: Guaraní | E14: 745913200 | F14: quirografario | H14: 2023 | I14: PYG | J14: Guaraní | K14: 1491826395 | L14: quirografario
A15: Nombre de la entidad financiera
A16: (incluir otras entidades)
A17: Deudas bursátiles
A18: * Bonos PG1 S1:10,75% , S2: 11,75%, S3:12,75% y S4: 13,50%
A19: * Bonos PG2 S1:11,75% , S2: 12,50%, S3:13,25% y S4: 14,00% | B19: 2021-11-18 | C19: PYG | D19: Guaraní | E19: 1681232876 | F19: quirografario | H19: 2021-11-18 | I19: PYG | J19: Guaraní | K19: 1858078766 | L19: quirografario
A20: Tarjetas de creditos | B20: N/A | C20: PYG | D20: Guaraní | E20: 100001 | F20: quirografario | H20: N/A | I20: PYG | J20: Guaraní | K20: 15943498 | L20: quirografario
A21: Sobregiros Bancarios. | H21: N/A | I21: PYG | J21: Guaraní | K21: 67283473.4 | L21: quirografario
A22: Préstamos de Entidades en el Exterior
A23: Nombre de la entidad financiera
A24: Nombre de la entidad financiera
A25: (incluir otras entidades)
A26: Deudas bursátiles
A27: (Incluir programas de forma individual)
A28: Intereses préstamos entidades financieras a pagar
A29: Banco Continental S.A.E.C.A. | B29: 2023 | C29: PYG | D29: Guaraní | E29: -171499960 | F29: quirografario | H29: 2023 | I29: PYG | J29: Guaraní | K29: -388376624 | L29: quirografario
A30: Intereses a pagar
A31: (-) Intereses a Devengar
A32: Intereses deudas bursátiles a pagar
A33: Intereses a pagar
A34: (-) Intereses a Devengar | B34: 2021-11-18 | C34: PYG | D34: Guaraní | E34: -93972601 | F34: quirografario | H34: 2021-11-18 | I34: PYG | J34: Guaraní | K34: -290140410 | L34: quirografario
A35: Total | E35: =SUM(E14:E34) -> 2161773516 | K35: =SUM(K14:K34) -> 2754615098
A37: No Corrientes
D38: 2021 | J38: 2020
A39: Préstamos de Entidades Locales | B39: Vencimiento | C39: Símbolo de Moneda | D39: Moneda | E39: Importe (miles de Gs) | F39: Tipo de Garantía | H39: Vencimiento | I39: Símbolo de Moneda | J39: Moneda | K39: Importe (miles de Gs) | L39: Tipo de Garantía
A40: Banco Continental S.A.E.C.A. | B40: 2023 | C40: PYG | D40: Guaraní | E40: 2772227098 | F40: quirografario | H40: 2023 | I40: PYG | J40: Guaraní | K40: 3518140295 | L40: quirografario
A41: Nombre de la entidad financiera
A42: (incluir otras entidades)
A43: Deudas bursátiles
A44: * Bonos PG1 S1:10,75% , S2: 11,75%, S3:12,75% y S4: 13,50% | H44: 2021-11-18 | I44: PYG | J44: Guaraní | K44: 1628876712 | L44: quirografario
A45: * Bonos PG2 S1:11,75% , S2: 12,50%, S3:13,25% y S4: 14,00%
A46: (Incluir programas de forma individual)
A47: Préstamos de Entidades en el Exterior
A48: Nombre de la entidad financiera
A49: Nombre de la entidad financiera
A50: (incluir otras entidades)
A51: Deudas bursátiles
A52: (Incluir programas de forma individual)
A53: Intereses préstamos entidades financieras a pagar
A54: Intereses a pagar
A55: (-) Intereses a Devengar | B55: 2023 | C55: PYG | D55: Guaraní | E55: -218051759 | F55: quirografario | H55: 2023 | I55: PYG | J55: Guaraní | K55: -347439814 | L55: quirografario
A56: Intereses deudas bursátiles a pagar
A57: Intereses a pagar
A58: (-) Intereses a Devengar | H58: 2021-11-18 | I58: PYG | J58: Guaraní | K58: -128876712 | L58: quirografario
A59: Total | E59: =SUM(E40:E58) -> 2554175339 | K59: =SUM(K40:K58) -> 4670700481

Sheet Nota 15
A1: BEPSA DEL PARAGUAY S.A.E.C.A. | D1: BG
A5: NOTA 15 – PORCION CORRIENTE DE LA DEUDA A LARGO PLAZO
A8: Porción corriente de la deuda a largo plazo | B8: 2021 | C8: 2020
A9: Cuentas por pagar comerciales
A10: Préstamos bancarios | B10: 0 | C10: 0
A11: Bonos bursátiles
A12: Intereses bancarios a pagar
A13: Intereses bursatiles a pagar
A14: (nuevas cuentas a incluir)
A15: Total general | B15: 0 | C15: 0

Sheet Nota 16
A1: BEPSA DEL PARAGUAY S.A.E.C.A. | F1: BG
A4: NOTA 16 – REMUNERACIONES Y CARGAS SOCIALES A PAGAR
A7: Remuneraciones y cargas sociales a pagar | B7: 2021 | C7: 2020
A8: Sueldo y otras remuneraciones a pagar
A9: Aportes y retenciones a pagar | B9: 298634012 | C9: 233481780
A10: Remuneraciones al personal superior a pagar
A11: Provisiones contables | B11: 463585408 | C11: 966024148
A12: (Indicar otras cuentas)
A13: Total | B13: =SUM(B9:B12) -> 762219420 | C13: =SUM(C9:C12) -> 1199505928

Sheet Nota 17
A1: =Indice!C1 -> BEPSA DEL PARAGUAY S.A.E.C.A. | G1: BG
A5: NOTA 17 – IMPUESTOS A PAGAR
A8: Impuestos a pagar | B8: =IFERROR(IF(Indice!B6="","2XX2",YEAR(Indice!B6)),"2XX2") -> 2021 | C8: =IFERROR(YEAR(Indice!B6-365),"2XX1") -> 2020
A9: Impuesto a la renta a pagar | C9: 0
A10: Otros impuestos a pagar
A11: (Indicar otros impuestos)
A12: Total | B12: =SUM($B$9:B11) -> 0 | C12: =SUM($C$9:C11) -> 0

Sheet Nota 18
A1: =Indice!C1 -> BEPSA DEL PARAGUAY S.A.E.C.A. | D1: BG
A4: NOTA 18 - PROVISIONES
A7: Provisiones | B7: =IFERROR(IF(Indice!B6="","2XX2",YEAR(Indice!B6)),"2XX2") -> 2021 | C7: =IFERROR(YEAR(Indice!B6-365),"2XX1") -> 2020
A9: Alquileres a Pagar
A10: Servicios Basicos a Pagar
A11: Honorarios Profesionales a Pagar
A12: (Indicar cuentas)
A13: Total | B13: =SUM($B$9:B12) -> 0 | C13: =SUM($C$9:C12) -> 0

Sheet Nota 19
A1: =Indice!C1 -> BEPSA DEL PARAGUAY S.A.E.C.A. | D1: BG
A3: NOTA 19 – OTROS PASIVOS CORRIENTES y NO CORRIENTES
A6: Corrientes | B6: 2021 | C6: 2020 | E6: No Corrientes | F6: 2021 | G6: 2020
A7: Retencion de IVA a pagar | E7: Retencion de IVA a pagar
A8: Retencion Impuesto a la renta a Pagar | E8: Retencion Impuesto a la renta a Pagar
A9: Impuestos diferidos | E9: Impuestos diferidos
A10: Otros ingresos diferidos (detallar cuenta) | E10: Otros ingresos diferidos
A11: Otros Pasivos con Entidades relacionadas | E11: Otros Pasivos con Entidades relacionadas
A12: Previsiones para contingencias/Indemnizaciones y despidos | E12: Previsiones para contingencias/Indemnizaciones y despidos
A13: (nuevas cuentas a incluir) | E13: (nuevas cuentas a incluir)
A14: Dividendos a distribuir | B14: 200563453 | C14: 320842102
A15: Acreedores fiscales | B15: 1668445382 | C15: 1775544141
A16: Acreedores varios | B16: =10673273740+12017786 -> 10685291526 | C16: 21779416700
A17: Total | B17: =SUM(B14:B16) -> 1.255430036e+10 | C17: =SUM(C14:C16) -> 2.387580294e+10 | E17: Total | F17: 0 | G17: 0

Sheet Nota 20
A1: =Indice!C1 -> BEPSA DEL PARAGUAY S.A.E.C.A. | D1: BG
A4: NOTA 20 – CAPITAL INTEGRADO
A6: Fecha | B6: 2021 | C6: 2020
A7: Monto Capital Social
A8: Monto Capital Integrado | B8: 41500000000 | C8: 38855800000
A9: Cantidad de Acciones | B9: 415000 | C9: 388558
A10: Valor Nominal de Acciones | B10: 100000 | C10: 100000
A11: Total | B11: 41500000000 | C11: 38855800000

Sheet Nota 21
A1: =Indice!C1 -> BEPSA DEL PARAGUAY S.A.E.C.A. | F1: BG
A4: NOTA 21 – RESERVAS
B6: En miles de guaranies
B7: 2021 | C7: 2020
A8: a Reserva de revalúo | B8: 9420414506 | C8: 4633572953
A13: b Reserva legal | B13: 1277694431 | C13: 1272442740
A18: c Reservas estatutarias
A22: d Reservas facultativas | B22: 989026484 | C22: 889244362
A23: d.1. (nuevas cuentas a incluir)
A24: d.2. (nuevas cuentas a incluir)

Sheet Nota 22
A1: =Indice!C1 -> BEPSA DEL PARAGUAY S.A.E.C.A. | F1: BG
A4: NOTA 21 – DIFERENCIA TRANSITORIA POR CONVERSION
B6: En miles de guaranies
B7: =IFERROR(IF(Indice!B6="","2XX2",YEAR(Indice!B6)),"2XX2") -> 2021 | C7: =+IFERROR(YEAR(Indice!B6-365),"2XX1") -> 2020
A8: Diferencia transitoria por conversión | B8: N/A

Sheet Nota 23
A1: =Indice!C1 -> BEPSA DEL PARAGUAY S.A.E.C.A. | F1: BG
A4: NOTA 23 – RESULTADOS ACUMULADOS
B7: 2021 | C7: 2020
A8: Resultado de ejercicios anteriores | C8: 0
A9: Resultado del ejercicio actual | B9: =+BG!F56 -> -4441025176 | C9: 4529191819
A10: Totales | B10: =+B9 -> -4441025176 | C10: =+C8+C9 -> 4529191819

Sheet Nota 24
A1: =Indice!C1 -> BEPSA DEL PARAGUAY S.A.E.C.A. | F1: BG
A4: NOTA 24 – INTERES MINORITARIO
B7: =IFERROR(IF(Indice!B6="","2XX2",YEAR(Indice!B6)),"2XX2") -> 2021 | C7: =+IFERROR(YEAR(Indice!B6-365),"2XX1") -> 2020
A8: Interes Minoritario

Sheet Nota 25
A1: =Indice!C1 -> BEPSA DEL PARAGUAY S.A.E.C.A. | E1: ER
A5: NOTA 25 – VENTAS
B8: En miles de guaranies
B9: 2021 | C9: 2020
A10: Ventas
A11: Ventas linea de negocio 1
A12: Local | B12: 35341521923 | C12: 34093017511
A13: Contado | B13: =+B12-B14 -> 32304905772 | C13: =+C12-C14 -> 3.186557611e+10
A14: Crédito | B14: 3036616151 | C14: 2227441401
A15: Exterior
A16: Contado
A17: Crédito
A18: Ventas linea de negocio 2
A19: Local
A20: Contado
A21: Crédito
A22: Exterior
A23: Contado
A24: Crédito
A25: (nuevas lineas de negocio a incluir)
A26: Total | B26: =+B12 -> 35341521923 | C26: =+C12 -> 34093017511

Sheet Nota 26
A1: =Indice!C1 -> BEPSA DEL PARAGUAY S.A.E.C.A. | E1: ER
A5: NOTA 26 - COSTO DE VENTAS
A9: Costo de ventas | B9: 2021 | C9: 2020
A10: Linea de negocio 1
A11: Existencia inicial del inventario
A12: + Compra de bienes y servicios | B12: 17747209703 | C12: 15870510620
A13: + Costo de producción
A14: - Existencia final de inventario
A15: Linea de negocio 2
A16: Existencia inicial del inventario
A17: + Compra de bienes y servicios
A18: + Costo de producción
A19: - Existencia final de inventario
A20: (nuevas lineas de negocio a incluir)
A21: Total costo de ventas | B21: =SUM(B11:B20) -> 17747209703 | C21: =SUM(C11:C20) -> 15870510620

Sheet Nota 27
A1: =Indice!C1 -> BEPSA DEL PARAGUAY S.A.E.C.A. | G1: ER
A5: NOTA 27 - GASTOS
A6: (Esta nota deberá ser incluida cuando en el estado de resultados se haga mención a una cuenta de carácter general o cuyo nombre no permita una adecuada identificación de la naturaleza del gasto y su importe sea significativo)
A8: El rubro está compuesto de la siguiente forma:
C11: 2021 | F11: 2020
B12: Gastos de Ventas | C12: Gastos Administrativos | D12: Total | E12: Gastos de Ventas | F12: Gastos Administrativos | G12: Total
A13: Honorarios y remuneraciones por servicios | C13: 806473618 | D13: =+B13+C13 -> 806473618 | F13: 335611070 | G13: =+E13+F13 -> 335611070
A14: Sueldos y otras remuneraciones | C14: 7424628947 | D14: =+B14+C14 -> 7424628947 | F14: 5736442745 | G14: =+E14+F14 -> 5736442745
A15: Contribuciones sociales | C15: 1081277949 | D15: 1081277949 | F15: 1097462150 | G15: 1097462150
A16: Capacitación al personal y seguro médico | C16: 302239801 | D16: 302239801 | F16: 191987592 | G16: 191987592
A17: Alquiler pagados | C17: 1216405576 | D17: 1216405576 | F17: 1028653328 | G17: 1028653328
A18: Manten. y reparación de Bienes de Uso | C18: 597752876 | D18: 597752876 | F18: 224613592 | G18: 224613592
A19: Depreciaciones de bienes de uso | C19: 3084490758 | D19: 3084490758 | F19: 1809592506 | G19: 1809592506
A20: Amortizaciones | C20: 2187006607 | D20: 2187006607 | F20: 1127447439 | G20: 1127447439
A21: Agua, luz y telefono | C21: 162933619 | D21: 162933619 | F21: 286986675 | G21: 286986675
A22: Gastos de correspondencia | C22: 33750668 | D22: 33750668 | G22: 0
A23: Papelería y útiles | C23: 27816693 | D23: 27816693 | F23: 26083486 | G23: 26083486
A24: Impuestos, tasas y patentes | C24: 477508194 | D24: 477508194 | F24: 164083138 | G24: 164083138
A25: Gastos comerciales | B25: 209138676 | D25: 209138676 | E25: 222113396 | G25: 222113396
A26: Gastos de representación | B26: 88750233 | D26: 88750233 | E26: 108926985 | G26: 108926985
A27: Int.,Com., Dif. de Cambio y Otras Pérd. | D27: 0 | G27: 0
A28: Previsiones | B28: 953870058 | D28: 953870058 | F28: 363826744 | G28: 363826744
A29: Costos por unidades de negocio | D29: 0 | G29: 0
A30: Otros Costos | D30: 0 | G30: 0
A31: Otros Gastos | C31: 1172552088 | D31: 1172552088 | F31: 966800625 | G31: 966800625
A32: Gastos de Estructura | D32: 0 | G32: 0
A33: Egresos no operativos | C33: 2400000000 | D33: 2400000000 | G33: 0
A34: (nuevas cuentas a incluir) | D34: 0 | G34: 0
A35: Total | B35: =SUM(B13:B34) -> 1251758967 | C35: 20974837394 | D35: 22226596361 | E35: 331040381 | F35: 13359591090 | G35: 13690631471

Sheet Nota 28
A1: =Indice!C1 -> BEPSA DEL PARAGUAY S.A.E.C.A. | E1: ER
A4: Nota 28 - Otros Ingresos y gastos operativos
A8: Otros ingresos | B8: =IFERROR(IF(Indice!B6="","2XX2",YEAR(Indice!B6)),"2XX2") -> 2021 | C8: =+IFERROR(YEAR(Indice!B6-365),"2XX1") -> 2020 | E8: Otros gastos | F8: =IFERROR(IF(Indice!B6="","2XX2",YEAR(Indice!B6)),"2XX2") -> 2021 | G8: =+IFERROR(YEAR(Indice!B6-365),"2XX1") -> 2020
A9: (Detallar cuenta) | E9: (Detallar cuenta)
A10: Total | B10: =SUM($B$9:B9) -> 0 | C10: =SUM($C$9:C9) -> 0 | E10: Total | F10: =SUM($F$9:F9) -> 0 | G10: =SUM($G$9:G9) -> 0

Sheet Nota 29
A1: =Indice!C1 -> BEPSA DEL PARAGUAY S.A.E.C.A. | E1: ER
A5: NOTA 29 - INGRESOS Y GASTOS FINANCIEROS NETOS
A8: Ingresos Financieros netos | B8: =IFERROR(IF(Indice!B6="","2XX2",YEAR(Indice!B6)),"2XX2") -> 2021 | C8: =+IFERROR(YEAR(Indice!B6-365),"2XX1") -> 2020 | E8: Gastos Financieros netos | F8: =IFERROR(IF(Indice!B6="","2XX2",YEAR(Indice!B6)),"2XX2") -> 2021 | G8: =+IFERROR(YEAR(Indice!B6-365),"2XX1") -> 2020
A9: (Detallar cuentas) | E9: (Detallar cuentas)
A10: Otros ingresos | B10: 485598113 | C10: 1074337526 | E10: Diferencia de cambio | G10: 95059408
A11: Diferencia de cambio | B11: 99914803 | E11: Gastos e intereses bancarios | F11: 394253951 | G11: 469461719
A14: Total ingresos financieros | B14: =SUM($B9:B13) -> 585512916 | C14: =SUM($C9:C13) -> 1074337526 | E14: Total gastos financieros | F14: =SUM($F9:F13) -> 394253951 | G14: =SUM($G9:G13) -> 564521127

Sheet Nota 30
A1: =Indice!C1 -> BEPSA DEL PARAGUAY S.A.E.C.A. | E1: ER
A4: Nota 34 - Resultado de inversiones en asociadas
A8: Resultado de inversiones en asociadas | B8: =IFERROR(IF(Indice!B6="","2XX2",YEAR(Indice!B6)),"2XX2") -> 2021 | C8: =+IFERROR(YEAR(Indice!B6-365),"2XX1") -> 2020
A9: (Detallar cuenta) | B9: 0 | C9: 0
A16: Total | B16: =SUM($B9:B15) -> 0 | C16: =SUM($C9:C15) -> 0

Sheet Nota 31
A1: =Indice!C1 -> BEPSA DEL PARAGUAY S.A.E.C.A. | E1: ER
A4: Nota 31 - Resultado participación minoritaria
A8: Resultado participación minoritaria | B8: =IFERROR(IF(Indice!B6="","2XX2",YEAR(Indice!B6)),"2XX2") -> 2021 | C8: =+IFERROR(YEAR(Indice!B6-365),"2XX1") -> 2020
A9: (Detallar cuenta)
A16: Total | B16: =SUM($B9:B15) -> 0 | C16: =SUM($C9:C15) -> 0

Sheet Nota 32
A1: =Indice!C1 -> BEPSA DEL PARAGUAY S.A.E.C.A. | E1: ER
A4: Nota 32 - IMPUESTO A LA RENTA
B7: =IFERROR(IF(Indice!B6="","2XX2",YEAR(Indice!B6)),"2XX2") -> 2021 | C7: =+IFERROR(YEAR(Indice!B6-365),"2XX1") -> 2020
A8: Impuesto a la renta | B8: 0 | C8: 512500000
A14: Total | B14: =SUM($B8:B13) -> 0 | C14: =SUM($C8:C13) -> 512500000

Sheet Nota 33
A1: =Indice!C1 -> BEPSA DEL PARAGUAY S.A.E.C.A. | E1: ER
A4: Nota 33 - Resultado extraordinario neto de impuesto a la renta
B7: =IFERROR(IF(Indice!B6="","2XX2",YEAR(Indice!B6)),"2XX2") -> 2021 | C7: =+IFERROR(YEAR(Indice!B6-365),"2XX1") -> 2020
A8: Conceptos
A9: (Detallar)
A15: Total | B15: =SUM($B8:B14) -> 0 | C15: =SUM($C8:C14) -> 0

Sheet Nota 34
A1: =Indice!C1 -> BEPSA DEL PARAGUAY S.A.E.C.A. | E1: ER
A4: Nota 34 - Resultado sobre actividades discontinuadas neto de impuesto a la renta
A7: Resultado sobre actividades discontinuadas neto de impuesto a la renta | B7: =IFERROR(IF(Indice!B6="","2XX2",YEAR(Indice!B6)),"2XX2") -> 2021 | C7: =+IFERROR(YEAR(Indice!B6-365),"2XX1") -> 2020
A9: (nueva cuenta a incluir)
A10: Subtotal
A11: - Impuesto a la renta
A12: Total | B12: =SUM($B8:B11) -> 0 | C12: =SUM($C8:C11) -> 0

Sheet Nota 35
A1: =Indice!C1 -> BEPSA DEL PARAGUAY S.A.E.C.A. | E1: ER
A4: NOTA 35- UTILIDAD (PÉRDIDA) NETA DEL AÑO Y POR ACCION ORDINARIA
A5: La Sociedad calcula la utilidad (pérdida) neta por acción sobre la base de la utilidad (pérdida) del año y … acciones ordinarias (aclarar las características de las acciones) de valor nominal G/ …cada una con derecho a … voto por acción (aclarar el derecho de voto que tiene cada tipo de acción).
B7: =IFERROR(IF(Indice!B6="","2XX2",YEAR(Indice!B6)),"2XX2") -> 2021 | C7: =+IFERROR(YEAR(Indice!B6-365),"2XX1") -> 2020
A8: Cantidad de Acciones Ordinarias en Circulación | B8: =+BG!F47/100000 -> 415000 | C8: =+BG!G47/100000 -> 388558
A9: Utilidad Neta | B9: =ER!C31 -> -4441025176 | C9: =ER!D31 -> 4529191819
A10: Utilidad Neta por Acción Ordinaria | B10: =+ER!C32 -> -10701.26548 | C10: =+ER!D32 -> 11656.41119

Sheet Nota 36
A1: =Indice!C1 -> BEPSA DEL PARAGUAY S.A.E.C.A. | E1: Indice
A4: NOTA 36 - ACTIVOS GRAVADOS
A6: Los siguientes bienes de propiedad de la Sociedad han sido hipotecados y prendados en garantía de obligaciones financieras.
A8: =IFERROR("Al "&DAY(Indice!B6)&" de "&VLOOKUP(MONTH(Indice!B6),Indice!S:T,2,0)&" de "&YEAR(Indice!B6-365),"Al dia... de mes… de año 2XX1…") -> Al 30 de Junio de 2020
A9: Tipo de Activo | B9: Datos del activo gravado | C9: Tipo de garantía | D9: Importe (indicar moneda) | E9: A favor de
A11: N/A
A15: =IFERROR("Al "&DAY(Indice!B6)&" de "&VLOOKUP(MONTH(Indice!B6),Indice!S:T,2,0)&" de "&YEAR(Indice!B6-1),"Al dia... de mes… de año 2XX2…") -> Al 30 de Junio de 2021
A16: Tipo de Activo | B16: Datos del activo gravado | C16: Tipo de garantía | D16: Importe (indicar moneda) | E16: A favor de
A18: N/A

Sheet Nota 37
A1: =Indice!C1 -> BEPSA DEL PARAGUAY S.A.E.C.A. | E1: Indice
A4: NOTA 37 - CONTINGENCIAS Y COMPROMISOS
A5: (Esta nota debería incluir un breve detalle de contratos con terceros, vigente a la fecha de cierre del ejercicio, cuyo incumplimiento o cláusula específica podrían generar obligaciones contingentes para el cliente).
A6: =IFERROR("Los principales contratos suscriptos por la Sociedad, vigentes al "&DAY(Indice!B6)&" de "&VLOOKUP(MONTH(Indice!B6),Indice!S:T,2,0)&" de "&YEAR(Indice!B6-1)&" son:","Los principales contratos suscriptos por la Sociedad, vigentes al … de … 20X2 son:") -> Los principales contratos suscriptos por la Sociedad, vigentes al 30 de Junio de 2021 son:
A7: a) N/A
A8: b) N/A
A11: =IFERROR("Al "&DAY(Indice!B6)&" de "&VLOOKUP(MONTH(Indice!B6),Indice!S:T,2,0)&" de "&YEAR(Indice!B6-1)&" no existen situaciones contingentes, ni reclamos que pudieran resultar en la generación de obligaciones para la Sociedad adicionales a las que se presentan en estos estados financieros.","Al … de …………... 20X2 no existen situaciones contingentes, ni reclamos que pudieran resultar en la generación de obligaciones para la Sociedad adicionales a las que se presentan en estos estados financieros.") -> Al 30 de Junio de 2021 no existen situaciones contingentes, ni reclamos que pudieran resultar en la generación de obligaciones para la Sociedad adicionales a las que se presentan en estos estados financieros.
A15: Obs.: Esta información debe estar ajustada a lo requerido por la Norma de Información Financiera N° 5 Contingencias y sucesos que ocurren después de la fecha del balance.

Sheet Nota 38
A1: =Indice!C1 -> BEPSA DEL PARAGUAY S.A.E.C.A. | D1: Índice
A4: NOTA 38 - IMPUESTO DIFERIDO
A6: Al 30 de junio 2021 la Sociedad constituyó una provisión para impuesto a la renta de Guaraníes (Al 30 de junio 2021: Guaraníes cero) / (La Sociedad no ha constituido provisión para impuesto a la renta, debido a que a esa fecha la misma generó renta imponible que fue compensada con quebrantos impositivos acumulados a esa fecha).
A7: La Sociedad contabiliza el impuesto a la renta por el método de lo diferido, método del pasivo. El mencionado método establece la determinación de activos o pasivos impositivos diferidos netos basados en las diferencias temporales y temporarias, con cargo a la línea Impuesto a la renta del Estado de resultados.
A9: El siguiente cuadro detalla las diferencias temporales a la tasa del impuesto a los efectos de determinación del impuesto diferido:
B11: =IFERROR(IF(Indice!B6="","2XX2",YEAR(Indice!B6)),"2XX2") -> 2021 | C11: =+IFERROR(YEAR(Indice!B6-365),"2XX1") -> 2020
A12: Activos y pasivos impositivos diferidos: | B12: N/A
A13: Caja y Bancos
A14: Inversiones
A15: Previsión para deudores incobrables
A16: Bienes de uso
A17: Activos intangibles
A18: Previsión del pasivo
A19: Deudas comerciales y bancarias
A20: Bienes de cambio
A21: Sub - total
A22: Previsión para impuestos diferidos netos
A23: Total activo/pasivo impositivo diferido neto antes de quebrantos
A24: Quebranto impositivo
A25: Total

Sheet Nota 39
A1: =Indice!C1 -> BEPSA DEL PARAGUAY S.A.E.C.A. | E1: Indice
A5: NOTA 39 - HECHOS POSTERIORES
A6: (En caso en que entre la fecha del cierre del ejercicio y la fecha de emisión de los estados financieros existan hechos posteriores significativos deberá evaluarse el tipo de hecho posterior del que se trate y modificar esta nota según corresponda).
A9: Entre la fecha de cierre del ejercicio y la fecha de preparación de estos estados financieros, no han ocurrido hechos significativos de carácter financiero o de otra índole que afecten la situación patrimonial o financiera o los resultados de la Sociedad al 30 de junio 2021.

Sheet Nota 40
A1: =Indice!C1 -> BEPSA DEL PARAGUAY S.A.E.C.A. | C1: Indice
A5: NOTA 40 - SALDOS Y TRANSACCIONES CON PARTES RELACIONADAS
B10: =IFERROR(IF(Indice!B6="","2XX2",YEAR(Indice!B6)),"2XX2") -> 2021 | C10: =+IFERROR(YEAR(Indice!B6-365),"2XX1") -> 2020
A11: ACTIVO
A12: Creditos por Ventas | B12: =+B13+B14 -> 1016719089 | C12: =+C13+C14 -> 580965051
A13: Banco Continental S.A.E.C.A. | B13: 1002395645
A14: Procard S.A. | B14: 14323444 | C14: 580965051
A15: Inversiones temporales
A16: Cuentas a cobrar comerciales
A17: Otros créditos
A18: Total activo | B18: =+B12 -> 1016719089 | C18: =+C12 -> 580965051
A19: PASIVO
A20: Cuentas por pagar comerciales | B20: =+B21+B22 -> 2455485683 | C20: =+C21+C22 -> 209161000
A21: Procard S.A. | B21: 442506981 | C21: 209161000
A22: Banco Continental S.A.E.C.A. | B22: 2012978702
A23: Préstamos a corto plazo | B23: =+B24 -> 574413240 | C23: =+C24 -> 1491826395
A24: Banco Continental S.A.E.C.A. | B24: =+'Nota 14'!E14+'Nota 14'!E29 -> 574413240 | C24: 1491826395
A25: Provisiones
A26: Préstamos a largo plazo | B26: =+B27 -> 2554175339 | C26: =+C27 -> 3518140295
A27: Banco Continental S.A.E.C.A. | B27: =+'Nota 14'!E59 -> 2554175339 | C27: 3518140295
A28: Otros pasivos
A29: Total pasivo | B29: =+B20+B23+B26 -> 5584074262 | C29: =+C20+C23+C26 -> 5219127690
B33: =IFERROR(IF(Indice!B6="","2XX2",YEAR(Indice!B6)),"2XX2") -> 2021 | C33: =+IFERROR(YEAR(Indice!B6-365),"2XX1") -> 2020
A34: Gastos financieros | B34: =+B35 -> 172198807 | C34: =+C35 -> 154187154
A35: Intereses pagados por préstamos | B35: 172198807 | C35: 154187154

Sheet Base de Monedas
A1: PYG | B1: Guaraní | C1: Índice
A2: USD | B2: Dólar estadounidense
A3: EUR | B3: Euro
A4: AED | B4: Dírham de los Emiratos Árabes Unidos
A5: AFN | B5: Afgani
A6: ALL | B6: Lek
A7: AMD | B7: Dram armenio
A8: ANG | B8: Florín antillano neerlandés
A9: AOA | B9: Kwanza
A10: ARS | B10: Peso argentino
A11: AUD | B11: Dólar australiano
A12: AWG | B12: Florín arubeño
A13: AZN | B13: Manat azerbaiyano
A14: BAM | B14: Marco convertible
A15: BBD | B15: Dólar de Barbados
A16: BDT | B16: Taka
A17: BGN | B17: Lev búlgaro
A18: BHD | B18: Dinar bareiní
A19: BIF | B19: Franco de Burundi
A20: BMD | B20: Dólar bermudeño
A21: BND | B21: Dólar de Brunéi
A22: BOB | B22: Boliviano
A23: BOV | B23: MVDOL
A24: BRL | B24: Real brasileño
A25: BSD | B25: Dólar bahameño
A26: BTN | B26: Ngultrum
A27: BWP | B27: Pula
A28: BYN | B28: Rublo bielorruso
A29: BZD | B29: Dólar beliceño
A30: CAD | B30: Dólar canadiense
A31: CDF | B31: Franco congoleño
A32: CHE | B32: Euro WIR
A33: CHF | B33: Franco suizo
A34: CHW | B34: Franco WIR
A35: CLF | B35: Unidad de fomento
A36: CLP | B36: Peso chileno
A37: CNY | B37: Yuan chino
A38: COP | B38: Peso colombiano
A39: COU | B39: Unidad de valor real
A40: CRC | B40: Colón costarricense
A41: CUC | B41: Peso convertible
A42: CUP | B42: Peso cubano
A43: CVE | B43: Escudo caboverdiano
A44: CZK | B44: Corona checa
A45: DJF | B45: Franco yibutiano
A46: DKK | B46: Corona danesa
A47: DOP | B47: Peso dominicano
A48: DZD | B48: Dinar argelino
A49: EGP | B49: Libra egipcia
A50: ERN | B50: Nakfa
A51: ETB | B51: Birr etíope
A52: FJD | B52: Dólar fiyiano
A53: FKP | B53: Libra malvinense
A54: GBP | B54: Libra esterlina
A55: GEL | B55: Lari
A56: GHS | B56: Cedi ghanés
A57: GIP | B57: Libra de Gibraltar
A58: GMD | B58: Dalasi
A59: GNF | B59: Franco guineano
A60: GTQ | B60: Quetzal
A61: GYD | B61: Dólar guyanés
A62: HKD | B62: Dólar de Hong Kong
A63: HNL | B63: Lempira
A64: HRK | B64: Kuna
A65: HTG | B65: Gourde
A66: HUF | B66: Forinto
A67: IDR | B67: Rupia indonesia
A68: ILS | B68: Nuevo shéquel israelí
A69: INR | B69: Rupia india
A70: IQD | B70: Dinar iraquí
A71: IRR | B71: Rial iraní
A72: ISK | B72: Corona islandesa
A73: JMD | B73: Dólar jamaiquino
A74: JOD | B74: Dinar jordano
A75: JPY | B75: Yen
A76: KES | B76: Chelín keniano
A77: KGS | B77: Som
A78: KHR | B78: Riel
A79: KMF | B79: Franco comorense
A80: KPW | B80: Won norcoreano
A81: KRW | B81: Won
A82: KWD | B82: Dinar kuwaití
A83: KYD | B83: Dólar de las Islas Caimán
A84: KZT | B84: Tenge
A85: LAK | B85: Kip
A86: LBP | B86: Libra libanesa
A87: LKR | B87: Rupia de Sri Lanka
A88: LRD | B88: Dólar liberiano
A89: LSL | B89: Loti
A90: LYD | B90: Dinar libio
A91: MAD | B91: Dírham marroquí
A92: MDL | B92: Leu moldavo
A93: MGA | B93: Ariary malgache
A94: MKD | B94: Denar
A95: MMK | B95: Kyat
A96: MNT | B96: Tugrik
A97: MOP | B97: Pataca
A98: MRU | B98: Uguiya
A99: MUR | B99: Rupia de Mauricio
A100: MVR | B100: Rufiyaa
A101: MWK | B101: Kwacha
A102: MXN | B102: Peso mexicano
A103: MXV | B103: Unidad de Inversión (UDI) mexicana
A104: MYR | B104: Ringgit malayo
A105: MZN | B105: Metical mozambiqueño
A106: NAD | B106: Dólar namibio
A107: NGN | B107: Naira
A108: NIO | B108: Córdoba
A109: NOK | B109: Corona noruega
A110: NPR | B110: Rupia nepalí
A111: NZD | B111: Dólar neozelandés
A112: OMR | B112: Rial omaní
A113: PAB | B113: Balboa
A114: PEN | B114: Sol
A115: PGK | B115: Kina
A116: PHP | B116: Peso filipino
A117: PKR | B117: Rupia pakistaní
A118: PLN | B118: Złoty
A119: QAR | B119: Riyal qatarí
A120: RON | B120: Leu rumano
A121: RSD | B121: Dinar serbio
A122: RUB | B122: Rublo ruso
A123: RWF | B123: Franco ruandés
A124: SAR | B124: Riyal saudí
A125: SBD | B125: Dólar de las Islas Salomón
A126: SCR | B126: Rupia seychelense
A127: SDG | B127: Dinar sudanés
A128: SEK | B128: Corona sueca
A129: SGD | B129: Dólar de Singapur
A130: SHP | B130: Libra de Santa Elena
A131: SLL | B131: Leone
A132: SOS | B132: Chelín somalí
A133: SRD | B133: Dólar surinamés
A134: SSP | B134: Libra sursudanesa
A135: STN | B135: Dobra
A136: SVC | B136: Colon Salvadoreño
A137: SYP | B137: Libra siria
A138: SZL | B138: Lilangeni
A139: THB | B139: Baht
A140: TJS | B140: Somoni tayiko
A141: TMT | B141: Manat turcomano
A142: TND | B142: Dinar tunecino
A143: TOP | B143: Paʻanga
A144: TRY | B144: Lira turca
A145: TTD | B145: Dólar de Trinidad y Tobago
A146: TWD | B146: Nuevo dólar taiwanés
A147: TZS | B147: Chelín tanzano
A148: UAH | B148: Grivna
A149: UGX | B149: Chelín ugandés
A150: USN | B150: Dólar estadounidense (Siguiente día)
A151: UYI | B151: Peso en Unidades Indexadas (Uruguay)
A152: UYU | B152: Peso uruguayo
A153: UYW | B153: Unidad Previsional
A154: UZS | B154: Som uzbeko
A155: VES7​ | B155: Bolívar soberano
A156: VND | B156: Dong vietnamita
A157: VUV | B157: Vatu
A158: WST | B158: Tala
A159: XAF | B159: Franco CFA de África Central
A160: XAG | B160: Plata (una onza troy)
A161: XAU | B161: Oro (una onza troy)
A162: XBA | B162: Unidad compuesta europea (EURCO) (Unidad del mercados de bonos)
A163: XBB | B163: Unidad Monetaria europea (E.M.U.-6) (Unidad del mercado de bonos)
A164: XBC | B164: Unidad europea de cuenta 9 (E.U.A.-9) (Unidad del mercado de bonos)
A165: XBD | B165: Unidad europea de cuenta 17 (E.U.A.-17) (Unidad del mercado de bonos)
A166: XCD | B166: Dólar del Caribe Oriental
A167: XDR | B167: Derechos especiales de giro
A168: XOF | B168: Franco CFA de África Occidental
A169: XPD | B169: Paladio (una onza troy)
A170: XPF | B170: Franco CFP
A171: XPT | B171: Platino (una onza troy)
A172: XSU | B172: SUCRE
A173: XTS | B173: Reservado para pruebas
A174: XUA | B174: Unidad de cuenta BAD
A175: XXX | B175: Sin divisa
A176: YER | B176: Rial yemení
A177: ZAR | B177: Rand
A178: ZMW | B178: Kwacha zambiano
A179: ZWL | B179: Dólar zimbabuense
